[Event "36th Cappelle Open 2020"]
[Site "Cappelle-la-Grande"]
[Date "2020.02.22"]
[Round "1.12"]
[White "Sadikhov, Ulvi"]
[Black "Lacrosse, Marc"]
[Result "1-0"]
[ECO "C54"]
[WhiteElo "2496"]
[BlackElo "2113"]
[Annotator "ChessBase"]
[PlyCount "33"]
[EventDate "2020.02.22"]
[EventType "swiss"]
[EventCountry "FRA"]
[SourceTitle "playchess.com"]
[Source "ChessBase"]
[SourceQuality "1"]
[TimeControl "40/5400+30:1800+30"]

1. e4 {[%emt 0:10:22]} e5 {[%emt 0:01:21]} 2. Nf3 {[%emt 0:00:09]} Nc6 {[%emt 0:00:12]} 3. Bc4 {[%emt 0:00:51]} Bc5 {[%emt 0:00:48]} 4. c3 {[%emt 0:00:18]} Nf6 {[%emt 0:00:40]} 5. d3 {[%emt 0:00:06]} a6 {[%emt 0:01:37]} 6. Bb3 {[%emt 0:00:26]} Ba7 {[%emt 0:01:13]} 7. Nbd2 {[%emt 0:00:41]} O-O {[%emt 0:01:31]} 8. h3 {[%emt 0:00:28]} h6 {[%emt 0:11:53]} 9. Nf1 {[%emt 0:01:57]} d5 {[%emt 0:01:43]} 10. Qe2 {[%emt 0:00:13]} Re8 {[%emt 0:04:00]} 11. g4 {[%emt 0:03:18]} dxe4 {[%emt 0:19:42]} 12. dxe4 {[%emt 0:04:04]} Na5 {[%emt 0:16:08]} 13. Bc2 {[%emt 0:01:23]} Bd7 {[%emt 0:06:10]} 14. Bd3 {[%emt 0:01:19]} Bb5 {[%emt 0:03:13]} 15. Bxb5 {[%emt 0:02:36]} axb5 {[%emt 0:00:07]} 16. Ng3 {[%emt 0:03:21]} b4 {[%emt 0:16:06]} 17. g5 {[%emt 0:06:11]} 1-0

[Event "36th Cappelle Open 2020"]
[Site "Cappelle-la-Grande"]
[Date "2020.02.23"]
[Round "2.11"]
[White "Sterck, Arno"]
[Black "Wiedenkeller, Michael"]
[Result "*"]
[ECO "C45"]
[WhiteElo "2227"]
[BlackElo "2455"]
[Annotator "ChessBase"]
[PlyCount "20"]
[EventDate "2020.02.22"]
[EventType "swiss"]
[EventCountry "FRA"]
[SourceTitle "playchess.com"]
[Source "ChessBase"]
[SourceQuality "1"]
[TimeControl "40/5400+30:1800+30"]

1. e4 {[%emt 0:00:00]} e5 {[%emt 0:00:01]} 2. Nf3 {[%emt 0:00:00]} Nc6 {[%emt 0:00:09]} 3. d4 {[%emt 0:00:19]} exd4 {[%emt 0:00:19]} 4. Nxd4 {[%emt 0:00:04]} Nf6 {[%emt 0:00:30]} 5. Nxc6 {[%emt 0:00:05]} bxc6 {[%emt 0:00:09]} 6. e5 {[%emt 0:00:02]} Qe7 {[%emt 0:02:20]} 7. Qe2 {[%emt 0:00:08]} Nd5 {[%emt 0:00:33]} 8. h4 {[%emt 0:02:24]} a5 {[%emt 0:04:06]} 9. g3 {[%emt 0:00:43]} Ba6 {[%emt 1:26:23]} 10. c4 {[%emt 0:00:08]} a4 {[%emt 0:12:44]} *

[Event "36th Cappelle Open 2020"]
[Site "Cappelle-la-Grande"]
[Date "2020.02.23"]
[Round "2.12"]
[White "Kollar, Romain"]
[Black "Dardha, Daniel"]
[Result "*"]
[ECO "B33"]
[WhiteElo "2216"]
[BlackElo "2442"]
[Annotator "ChessBase"]
[PlyCount "28"]
[EventDate "2020.02.22"]
[EventType "swiss"]
[EventCountry "FRA"]
[SourceTitle "playchess.com"]
[Source "ChessBase"]
[SourceQuality "1"]
[TimeControl "40/5400+30:1800+30"]

1. e4 {[%emt 0:00:00]} c5 {[%emt 0:11:44]} 2. Nf3 {[%emt 0:00:00]} Nc6 {[%emt 0:00:08]} 3. d4 {[%emt 0:00:04]} cxd4 {[%emt 0:00:07]} 4. Nxd4 {[%emt 0:00:08]} Nf6 {[%emt 0:00:03]} 5. Nc3 {[%emt 0:00:11]} e5 {[%emt 0:00:06]} 6. Ndb5 {[%emt 0:00:16]} d6 {[%emt 0:00:06]} 7. Bg5 {[%emt 0:00:24]} a6 {[%emt 0:00:05]} 8. Na3 {[%emt 0:00:04]} b5 {[%emt 0:00:04]} 9. Nd5 {[%emt 0:00:06]} Be7 {[%emt 0:00:04]} 10. Bxf6 {[%emt 0:00:10]} Bxf6 {[%emt 0:00:03]} 11. g3 {[%emt 0:00:34]} Bg5 {[%emt 0:02:29]} 12. Bg2 {[%emt 0:00:54]} O-O {[%emt 0:01:47]} 13. O-O {[%emt 1:33:39]} Be6 {[%emt 0:01:07]} 14. Qd3 {[%emt 0:05:30]} Qb8 {[%emt 0:11:24]} *